fUSD/lending_fUSD_20240805
["ID","MTS","AMOUNT","RATE_DAILY","PERIOD"]
[334194880,1722823871577,-500.0,0.00024419,2]
[334194881,1722823871587,-197.77435467,0.00024421,2]
[334194882,1722823871596,-184.93940692,0.00024421,2]
[334194883,1722823871606,-3202.95,0.00024422,2]
[334194884,1722823871616,-284.83202442,0.00024425,2]
[334194885,1722823871626,-284.83202442,0.00024427,2]
[334194886,1722823871644,-150.0,0.00024427,2]
[334194887,1722823871653,-500.0,0.00024428,2]
[334194888,1722823871663,-150.0,0.0002443,2]
[334194889,1722823871673,-150.0,0.0002443,2]
[334194890,1722823871683,-1576.31395161,0.0002443,2]
[334194891,1722823871693,-1576.31395161,0.00024432,2]
[334194892,1722823871704,-150.0,0.00024432,2]
[334194893,1722823871714,-150.0,0.00024434,2]
[334194894,1722823871724,-284.83202442,0.00024434,2]
[334194895,1722823871733,-500.0,0.00024437,2]
[334194896,1722823871743,-469.77748496,0.00024438,2]
[334194897,1722823871752,-5000.0,0.00024438,2]
[334194898,1722823871761,-150.0,0.00024439,2]
[334194899,1722823871771,-469.77748496,0.00024441,2]
[334194900,1722823871783,-469.77748496,0.00024445,2]
[334194901,1722823871792,-150.0,0.00024445,2]
[334194902,1722823871802,-500.0,0.00024446,2]
[334194903,1722823871811,-469.77748496,0.00024446,2]
[334194904,1722823871821,-1576.31395161,0.00024446,2]
[334194905,1722823871831,-197.77435467,0.0002445,2]
[334194906,1722823871841,-1576.31395161,0.00024454,2]
[334194907,1722823871851,-500.0,0.00024454,2]
[334194908,1722823871860,-197.77435467,0.00024458,2]
[334194909,1722823871870,-150.0,0.00024459,2]
[334194910,1722823871880,-284.83202442,0.00024459,2]
[334194911,1722823871898,-197.77435467,0.0002446,2]
[334194912,1722823871908,-197.77435467,0.00024461,2]
[334194913,1722823871917,-500.0,0.00024463,2]
[334194914,1722823871927,-150.0,0.00024465,2]
[334194915,1722823871936,-469.77748496,0.00024466,2]
[334194916,1722823871945,-150.0,0.0002447,2]
[334194917,1722823871955,-1053.62381432,0.00024471,2]
[334194918,1722823871965,-469.77748496,0.00024472,2]
[334194919,1722823871975,-500.0,0.00024472,2]
[334194920,1722823871984,-284.83202442,0.00024473,2]
[334194921,1722823871994,-284.83202442,0.00024474,2]
[334194922,1722823872004,-469.77748496,0.00024476,2]
[334194923,1722823872013,-150.0,0.00024476,2]
[334194924,1722823872023,-150.0,0.00024477,2]
[334194925,1722823872032,-1576.31395161,0.00024479,2]
[334194926,1722823872042,-150.0,0.00024479,2]
[334194927,1722823872051,-150.0,0.0002448,2]
[334194928,1722823872061,-1576.31395161,0.0002448,2]
[334194929,1722823872071,-1576.31395161,0.00024485,2]
[334194930,1722823872080,-5000.0,0.00024486,2]
[334194931,1722823872091,-150.0,0.00024487,2]
[334194932,1722823872100,-4716.63,0.00024491,2]
[334194933,1722823872110,-197.77435467,0.00024494,2]
[334194934,1722823872120,-150.0,0.00024494,2]
[334194935,1722823872134,-1576.31395161,0.00024496,2]
[334194936,1722823872149,-2625.6526319,0.00024498,4]
[334194937,1722823872159,-150.0,0.00024499,2]
[334194938,1722823872170,-1024.85775608,0.000245,2]
[334194939,1722823872180,-1050.08109978,0.000245,2]
[334194940,1722823872190,-340.79023826,0.000245,7]
[334194941,1722823872199,-449.29624025,0.000245,2]
[334194942,1722823872209,-155.0,0.000245,2]
[334194943,1722823872219,-429.16161175,0.000245,2]
[334194944,1722823872229,-22084.83947671,0.000245,2]
[334194945,1722823872239,-299.81326693,0.000245,2]
[334194946,1722823872249,-171.25997361,0.000245,2]
[334194947,1722823872259,-412.90303818,0.000245,2]
[334194948,1722823872269,-181.72444059,0.000245,2]
[334194949,1722823872280,-1600.0,0.000245,8]
[334194950,1722823872290,-5000.0,0.00024503,2]
[334194951,1722823872299,-500.0,0.00024508,7]
[334194952,1722823872310,-5000.0,0.0002451,2]
[334194953,1722823872319,-150.0,0.00024515,2]
[334194954,1722823872330,-150.0,0.0002454,2]
[334194955,1722823872339,-150.0,0.00024542,2]
[334194956,1722823872349,-5000.0,0.00024547,2]
[334194957,1722823872359,-5000.0,0.00024548,2]
[334194958,1722823872368,-150.0,0.0002455,2]
[334194959,1722823872378,-150.0,0.00024553,2]
[334194960,1722823872397,-600.0,0.00024562,2]
[334194961,1722823872407,-1559.05,0.00024565,2]
[334194962,1722823872417,-150.0,0.00024571,2]
[334194963,1722823872427,-600.0,0.00024575,2]
[334194964,1722823872440,-600.0,0.00024577,2]
[334194965,1722823872449,-5000.0,0.00024577,2]
[334194966,1722823872459,-2502.96,0.00024578,2]
[334194967,1722823872473,-150.0,0.00024581,2]
[334194968,1722823872483,-150.0,0.00024583,2]
[334194969,1722823872493,-150.0,0.00024584,2]
[334194970,1722823872504,-500.0,0.0002459,2]
[334194971,1722823872513,-150.0,0.00024592,2]
[334194972,1722823872523,-2626.0,0.00024598,6]
[334194973,1722823872533,-2000.0,0.000246,2]
[334194974,1722823872542,-2000.0,0.000246,2]
[334194975,1722823872552,-2000.0,0.000246,2]
[334194976,1722823872562,-697.0,0.000246,12]
[334194977,1722823872571,-1014.0,0.000246,2]
[334194978,1722823872581,-1600.0,0.000246,8]
[334194979,1722823872591,-192.0,0.000246,8]
[334194980,1722823872601,-150.0,0.00024604,2]
[334194981,1722823872612,-150.0,0.00024613,2]
[334194982,1722823872622,-5000.0,0.00024613,2]
[334194983,1722823872639,-150.0,0.00024627,2]
[334194984,1722823872648,-1800.0,0.00024628,2]
[334194985,1722823872658,-500.0,0.00024639,2]
[334194986,1722823872668,-150.0,0.00024641,2]
[334194987,1722823872678,-151.18453015,0.00024646,2]
[334194988,1722823872687,-150.0,0.00024648,2]
[334194989,1722823872698,-150.0,0.0002465,2]
[334194990,1722823872708,-150.0,0.00024654,2]
[334194991,1722823872718,-500.0,0.00024657,2]
[334194992,1722823872727,-500.0,0.00024657,2]
[334194993,1722823872737,-500.0,0.00024657,2]
[334194994,1722823872746,-500.0,0.00024657,2]
[334194995,1722823872756,-500.0,0.00024657,2]
[334194996,1722823872765,-500.0,0.00024657,2]
[334194997,1722823872776,-833.85,0.00024657,30]
[334194998,1722823872786,-833.85,0.00024657,30]
[334194999,1722823872795,-833.85,0.00024657,30]
[334195000,1722823872805,-833.85,0.00024657,30]
[334195001,1722823872815,-833.85,0.00024657,30]
[334195002,1722823872824,-833.85,0.00024657,30]
[334195003,1722823872833,-833.85,0.00024657,30]
[334195004,1722823872843,-833.85,0.00024657,30]
[334195005,1722823872852,-833.85,0.00024657,30]
[334195006,1722823872861,-833.85,0.00024657,30]
[334195007,1722823872871,-833.85,0.00024657,30]
[334195008,1722823872883,-833.85,0.00024657,30]
[334195009,1722823872897,-833.85,0.00024657,30]
[334195010,1722823872907,-833.85,0.00024657,30]
[334195011,1722823872916,-833.85,0.00024657,30]
[334195012,1722823872926,-833.85,0.00024657,30]
[334195013,1722823872935,-833.85,0.00024657,30]
[334195014,1722823872945,-833.85,0.00024657,30]
[334195015,1722823872955,-833.85,0.00024657,30]
[334195016,1722823872964,-833.85,0.00024657,30]
[334195017,1722823872974,-833.85,0.00024657,30]
[334195018,1722823872984,-833.85,0.00024657,30]
[334195019,1722823872993,-833.85,0.00024657,30]
[334195020,1722823873003,-833.89872026,0.00024657,30]
[334195021,1722823873013,-150.0,0.00024657,2]
[334195022,1722823873023,-500.0,0.00024657,2]
[334195023,1722823873032,-500.0,0.00024657,2]
[334195024,1722823873042,-500.0,0.00024657,2]
[334195025,1722823873051,-500.0,0.00024657,2]
[334195026,1722823873061,-500.0,0.00024657,2]
[334195027,1722823873071,-500.0,0.00024657,2]
[334195028,1722823873081,-150.0,0.00024661,2]
[334195029,1722823873091,-150.0,0.00024674,2]
[334195030,1722823873100,-1000.0,0.00024677,2]
[334195031,1722823873110,-5000.0,0.00024681,2]
[334195032,1722823873120,-150.0,0.00024682,2]
[334195033,1722823873130,-4877.53,0.00024695,2]
[334195034,1722823873150,-1600.0,0.000247,9]
[334195035,1722823873160,-5000.0,0.00024708,2]
[334195036,1722823873170,-150.0,0.00024709,2]
[334195037,1722823873180,-150.0,0.00024718,2]
[334195038,1722823873190,-150.0,0.00024719,2]
[334195039,1722823873199,-5000.0,0.00024726,2]
[334195040,1722823873209,-150.0,0.00024729,2]
[334195041,1722823873220,-5000.0,0.0002473,2]
[334195042,1722823873230,-150.0,0.00024744,2]
[334195043,1722823873239,-150.0,0.00024747,2]
[334195044,1722823873249,-150.0,0.0002475,2]
[334195045,1722823873259,-150.0,0.0002475,2]
[334195046,1722823873269,-150.27852,0.0002475,2]
[334195047,1722823873280,-150.0,0.00024751,2]
[334195048,1722823873290,-150.0,0.00024756,2]
[334195049,1722823873300,-150.0,0.00024756,2]
[334195050,1722823873310,-1800.0,0.00024761,2]
[334195051,1722823873320,-1800.0,0.00024762,2]
[334195052,1722823873331,-5000.0,0.00024768,2]
[334195053,1722823873341,-5000.0,0.00024769,2]
[334195054,1722823873351,-5000.0,0.00024769,2]
[334195055,1722823873361,-158.00926893,0.00024776,2]
[334195056,1722823873371,-150.0,0.00024777,2]
[334195057,1722823873381,-500.0,0.00024781,7]
[334195058,1722823873398,-150.0,0.00024783,2]
[334195059,1722823873408,-500.0,0.00024783,2]
[334195060,1722823873418,-150.0,0.00024789,2]
[334195061,1722823873429,-5000.0,0.00024795,2]
[334195062,1722823873440,-150.0,0.00024797,2]
[334195063,1722823873450,-500.0,0.00024798,2]
[334195064,1722823873460,-302.05602573,0.00024799,2]
[334195065,1722823873475,-150.0,0.00024799,10]
[334195066,1722823873485,-150.0,0.00024799,10]
[334195067,1722823873495,-150.0,0.00024799,10]
[334195068,1722823873504,-150.0,0.00024799,10]
[334195069,1722823873514,-150.0,0.00024799,10]
[334195070,1722823873526,-150.0,0.00024799,10]
[334195071,1722823873536,-150.0,0.00024799,10]
[334195072,1722823873548,-150.0,0.00024799,10]
[334195073,1722823873558,-150.0,0.00024799,10]
[334195074,1722823873567,-150.0,0.00024799,10]
[334195075,1722823873578,-150.0,0.00024799,10]
[334195076,1722823873587,-150.0,0.00024799,10]
[334195077,1722823873597,-150.0,0.00024799,10]
[334195078,1722823873607,-150.0,0.00024799,10]
[334195079,1722823873617,-150.0,0.00024799,10]
[334195080,1722823873627,-150.0,0.00024799,10]
[334195081,1722823873645,-150.0,0.00024799,10]
[334195082,1722823873654,-150.0,0.00024799,10]
[334195083,1722823873663,-150.0,0.00024799,10]
[334195084,1722823873673,-500.0,0.00024799,2]
[334195085,1722823873683,-500.0,0.00024799,2]
[334195086,1722823873692,-500.0,0.000248,2]
[334195087,1722823873703,-500.0,0.000248,2]
[334195088,1722823873713,-2026.76178806,0.000248,2]
[334195089,1722823873723,-30405.15955855,0.000248,2]
[334195090,1722823873732,-3000.0,0.000248,2]
[334195091,1722823873742,-3000.0,0.000248,2]
[334195092,1722823873751,-3000.0,0.000248,2]
[334195093,1722823873760,-3000.0,0.000248,2]
[334195094,1722823873770,-3000.0,0.000248,2]
[334195095,1722823873780,-3000.0,0.000248,2]
[334195096,1722823873790,-3011.5217,0.000248,2]
[334195097,1722823873799,-8645.5612155,0.000248,2]
[334195098,1722823873809,-3851.27,0.000248,7]
[334195099,1722823873818,-500.0,0.000248,2]
[334195100,1722823873828,-500.0,0.000248,2]
[334195101,1722823873838,-500.0,0.000248,2]
[334195102,1722823873848,-500.0,0.000248,2]
[334195103,1722823873857,-500.0,0.000248,2]
[334195104,1722823873867,-200.0,0.000248,2]
[334195105,1722823873877,-150.0,0.000248,2]
[334195106,1722823873896,-218153.44240545,0.000248,2]
[334195107,1722823873906,-2225.0,0.000248,9]
[334195108,1722823873915,-2516.705938,0.000248,2]
[334195109,1722823873925,-150.0,0.00024802,2]
[334195110,1722823873936,-150.0,0.00024807,2]
[334195111,1722823873946,-5000.0,0.00024808,2]
[334195112,1722823873955,-150.0,0.00024811,2]
[334195113,1722823873965,-150.0,0.00024811,2]
[334195114,1722823873974,-1910.69,0.00024826,2]
[334195115,1722823873984,-980.89,0.00024831,2]
[334195116,1722823873995,-5000.0,0.00024832,2]
[334195117,1722823874004,-150.0,0.00024833,2]
[334195118,1722823874014,-150.0,0.00024853,2]
[334195119,1722823874024,-600.0,0.00024858,2]
[334195120,1722823874034,-150.0,0.00024863,2]
[334195121,1722823874044,-5800.0,0.00024866,2]
[334195122,1722823874054,-600.0,0.00024866,2]
[334195123,1722823874064,-5800.0,0.00024875,2]
[334195124,1722823874075,-5800.0,0.00024883,2]
[334195125,1722823874085,-500.0,0.00024885,2]
[334195126,1722823874095,-150.0,0.00024889,2]
[334195127,1722823874105,-1000.23086998,0.00024899,21]
[334195128,1722823874114,-55723.15707429,0.00024899,21]
[334195129,1722823874125,-532.1848691,0.000249,2]
[334195130,1722823874143,-196.58439707,0.000249,2]
[334195131,1722823874152,-474.62,0.000249,31]
[334195132,1722823874162,-474.62,0.000249,31]
[334195133,1722823874172,-474.62,0.000249,31]
[334195134,1722823874181,-474.62,0.000249,31]
[334195135,1722823874191,-474.62,0.000249,31]
[334195136,1722823874200,-474.62,0.000249,31]
[334195137,1722823874210,-474.62,0.000249,31]
[334195138,1722823874219,-474.62,0.000249,31]
[334195139,1722823874229,-474.62,0.000249,31]
[334195140,1722823874239,-474.62,0.000249,31]
[334195141,1722823874248,-474.62,0.000249,31]
[334195142,1722823874258,-474.62,0.000249,31]
[334195143,1722823874267,-474.62,0.000249,31]
[334195144,1722823874278,-474.62,0.000249,31]
[334195145,1722823874288,-474.62,0.000249,31]
[334195146,1722823874297,-474.62,0.000249,31]
[334195147,1722823874307,-474.62,0.000249,31]
[334195148,1722823874317,-474.62,0.000249,31]
[334195149,1722823874327,-474.62,0.000249,31]
[334195150,1722823874337,-474.62,0.000249,31]
[334195151,1722823874347,-240.47054891,0.000249,2]
[334195152,1722823874356,-177.58493624,0.000249,2]
[334195153,1722823874366,-314.72218928,0.000249,2]
[334195154,1722823874376,-1375.6601076,0.000249,2]
[334195155,1722823874385,-4227.37359952,0.000249,2]
[334195156,1722823874395,-1489.25253361,0.000249,2]
[334195157,1722823874404,-245.85819742,0.000249,2]
[334195158,1722823874414,-5000.0,0.00024907,2]
[334195159,1722823874424,-150.0,0.00024912,2]
[334195160,1722823874436,-150.0,0.00024912,2]
[334195161,1722823874446,-150.0,0.00024913,2]
[334195162,1722823874456,-500.0,0.00024916,2]
[334195163,1722823874469,-150.0,0.00024917,2]
[334195164,1722823874480,-150.0,0.00024918,2]
[334195165,1722823874490,-500.0,0.00024922,2]
[334195166,1722823874500,-150.0,0.00024924,10]
[334195167,1722823874509,-150.0,0.00024924,10]
[334195168,1722823874519,-150.0,0.00024924,10]
[334195169,1722823874529,-150.0,0.00024924,10]
[334195170,1722823874540,-150.0,0.00024924,10]
[334195171,1722823874549,-150.0,0.00024924,10]
[334195172,1722823874560,-150.0,0.00024924,10]
[334195173,1722823874570,-150.0,0.00024924,10]
[334195174,1722823874580,-150.0,0.00024924,10]
[334195175,1722823874590,-150.0,0.00024924,10]
[334195176,1722823874600,-150.0,0.00024924,10]
[334195177,1722823874609,-150.0,0.00024924,10]
[334195178,1722823874619,-150.0,0.00024924,10]
[334195179,1722823874629,-150.0,0.00024924,10]
[334195180,1722823874648,-150.0,0.00024924,10]
[334195181,1722823874658,-150.0,0.00024924,10]
[334195182,1722823874667,-150.0,0.00024924,10]
[334195183,1722823874680,-150.0,0.00024924,10]
[334195184,1722823874690,-150.0,0.00024924,10]
[334195185,1722823874699,-150.0,0.00024925,2]
[334195186,1722823874709,-150.0,0.00024925,2]
[334195187,1722823874719,-150.0,0.00024939,2]
[334195188,1722823874728,-5000.0,0.00024952,2]
[334195189,1722823874738,-565.36,0.0002496,2]
[334195190,1722823874748,-150.0,0.00024968,2]
[334195191,1722823874757,-150.0,0.0002497,2]
[334195192,1722823874767,-150.0,0.00024972,2]
[334195193,1722823874777,-150.0,0.00024978,2]
[334195194,1722823874787,-150.0,0.0002498,2]
[334195195,1722823874797,-150.0,0.00024984,2]
[334195196,1722823874807,-150.0,0.00024984,2]
[334195197,1722823874817,-150.0,0.00024984,2]
[334195198,1722823874827,-500.0,0.00024987,2]
[334195199,1722823874840,-500.0,0.00024992,2]
[334195200,1722823874850,-1512.5,0.00024993,2]
[334195201,1722823874860,-150.0,0.00024994,2]
[334195202,1722823874869,-150.0,0.00024995,2]
[334195203,1722823874879,-5544.204494,0.00024997,2]
[334195204,1722823874889,-21782.8478215,0.00024997,2]
[334195205,1722823874899,-931.3184384,0.00024997,2]
[334195206,1722823874908,-1883.376039,0.00024997,2]
[334195207,1722823874918,-496.8843059,0.00024997,2]
[334195208,1722823874927,-1415.6693146,0.00024997,2]
[334195209,1722823874937,-1460.41935366,0.00024997,2]
[334195210,1722823874946,-261.43192101,0.00024999,2]
[334195211,1722823874956,-2280.31262705,0.00024999,2]
[334195212,1722823874965,-3000.0,0.00024999,2]
[334195213,1722823874975,-3000.0,0.00024999,2]
[334195214,1722823874985,-2454.65476424,0.00025,2]
[334195215,1722823874995,-250662.66644001,0.00025,2]
[334195216,1722823876839,-414.57551756,0.00011525,2]
[334195217,1722823876849,-500.0,0.00012438,2]
[334195218,1722823876859,-190.58504368,0.00012438,2]
[334195219,1722823876868,-11634.46991351,0.00024562,2]
[334195220,1722823876879,-500.0,0.00024562,2]
[334195221,1722823876890,-5002.69143628,0.00024562,2]
[334195222,1722823876899,-212246.64913653,0.00025,2]
[334195223,1722823876910,-1217.64466643,0.00025,2]
[334195224,1722823877040,-1511.08965832,0.00025,2]
[334195225,1722823877054,-12630.67484588,0.00025,2]
[334195226,1722823877064,-4545.65069192,0.00025,2]
[334195227,1722823929982,5000.0,0.00025,60]
[334195228,1722823963951,5000.0,0.0002,60]
[334195230,1722824000737,5000.0,0.00025,60]
[334195236,1722824249901,1049.99995705,0.00017004,40]
[334195238,1722824264922,1049.99995705,0.00017004,40]
[334195245,1722824332686,183.26,9.216e-05,2]
[334195247,1722824354325,1189.06309504,9.216e-05,2]
[334195248,1722824359994,6040.99443211,9.216e-05,2]
[334195249,1722824360930,200.0,9.28e-05,2]
[334195250,1722824363755,416.8846113,9.216e-05,2]
[334195251,1722824370214,158.98592181,9.216e-05,2]
[334195252,1722824370634,200.0,0.00016885,30]
[334195253,1722824370702,200.0,0.00016885,30]
[334195254,1722824371563,200.0,0.00016885,30]
[334195255,1722824371602,200.0,0.00016885,30]
[334195256,1722824371647,200.0,0.00016885,30]
[334195257,1722824372579,155.20765269,9.216e-05,2]
[334195258,1722824376251,299.70210407,9.216e-05,2]
[334195259,1722824381158,155.21315125,9.216e-05,2]
[334195260,1722824381354,227.63850404,9.216e-05,2]
[334195261,1722824389034,750.0,9.216e-05,2]
[334195263,1722824411000,843.72,9.169e-05,2]
[334195264,1722824429074,169.99,7.335e-05,2]
[334195265,1722824433817,579.0,0.00025,60]
[334195266,1722824436283,23900.0,9.169e-05,2]
[334195269,1722824456789,873.47518968,0.00027,120]
[334195270,1722824472531,154399.0,9.51e-05,2]
[334195271,1722824475221,158.82558054,9.216e-05,2]
[334195272,1722824484313,227.63850404,9.169e-05,2]
[334195273,1722824488570,542.29893,9.527e-05,2]
[334195274,1722824507345,2008.6,9.184e-05,2]
[334195275,1722824530290,200.0,9.239e-05,2]
[334195276,1722824532734,20158.1368,9.184e-05,2]
[334195277,1722824557846,992.18,8.219e-05,2]
[334195278,1722824562900,300.0,9.527e-05,2]
[334195279,1722824648914,2697.5609,9.5e-05,2]
[334195281,1722824688782,154.44,9.08e-05,2]
[334195282,1722824688991,154.44,9.084e-05,2]
[334195283,1722824689191,154.44,9.089e-05,2]
[334195284,1722824689477,154.44,9.093e-05,2]
[334195285,1722824689684,154.44,9.098e-05,2]
[334195286,1722824689881,154.44,9.102e-05,2]
[334195287,1722824690094,154.44,9.107e-05,2]
[334195288,1722824690302,154.44,9.112e-05,2]
[334195289,1722824690524,154.44,9.116e-05,2]
[334195290,1722824690741,154.44,9.121e-05,2]
[334195291,1722824691091,154.44,9.125e-05,2]
[334195292,1722824716639,5225.52,9.107e-05,2]
[334195293,1722824730604,1081.18,9.141e-05,2]
[334195294,1722824769820,250.0,9.107e-05,2]
[334195296,1722824791926,1076.39,9.127e-05,2]
[334195297,1722824795402,2383.21392471,9.107e-05,2]
[334195298,1722824806864,1245.75,9.107e-05,2]
[334195299,1722824809306,872.07,9.107e-05,2]
[334195300,1722824854689,500.0,0.00027,120]
[334195301,1722824864907,504.0,0.00027,120]
[334195303,1722824875987,5022.72169031,0.0002,120]
[334195304,1722824882767,161.28,9.145e-05,2]
[334195306,1722824885800,1860.49807839,0.00027,120]
[334195307,1722824891007,268.36,9.145e-05,2]
[334195308,1722824910675,281.60835563,0.00012,30]
[334195309,1722824912169,136955.75546475,0.00027,120]
[334195310,1722824919952,2325.2692,9.515e-05,2]
[334195311,1722824936571,169.68,9.14e-05,2]
[334195312,1722824944897,23900.0,9.14e-05,2]
[334195313,1722824953131,-819.0,9.595e-05,2]
[334195314,1722824953155,-300.0,9.597e-05,2]
[334195315,1722824953176,-220.0,9.598e-05,2]
[334195316,1722824953198,-1478.533516,9.598e-05,2]
[334195317,1722824958595,-4197.00653944,9.598e-05,2]
[334195320,1722824958646,-150.0,9.599e-05,2]
[334195323,1722824958688,-6198.48074275,9.6e-05,2]
[334195324,1722824958757,-9760.81535725,9.6e-05,2]
[334195326,1722824958802,-784.67192494,9.6e-05,2]
[334195329,1722824958951,-501.77507506,9.6e-05,2]
[334195330,1722824958995,-257.3821,9.6e-05,2]
[334195331,1722824959035,-9786.33010713,9.6e-05,2]
[334195332,1722824959518,-6890.10989287,9.6e-05,2]
[334195333,1722824959558,-3655.37738932,9.6e-05,2]
[334195334,1722824959626,-10545.48728219,9.6e-05,2]
[334195335,1722824959696,-9225.23202849,9.6e-05,2]
[334195336,1722824959739,-817.3025,9.6e-05,2]
[334195337,1722824959782,-175.9123,9.6e-05,2]
[334195338,1722824959829,-327.0404537,9.6e-05,2]
[334195339,1722824959897,-1088.2826463,9.6e-05,2]
[334195340,1722824959938,-2549.5628,9.6e-05,2]
[334195341,1722824959981,-1000.0,9.6e-05,2]
[334195342,1722824960022,-3236.9811,9.6e-05,2]
[334195343,1722824960067,-2500.0,9.6e-05,2]
[334195344,1722824960109,-170.66073589,9.6e-05,2]
[334195345,1722824960182,-10545.48728219,9.6e-05,2]
[334195346,1722824960239,-2451.00930931,9.6e-05,2]
[334195347,1722824960279,-171.36,9.602e-05,2]
[334195348,1722824960324,-7923.11797288,9.606e-05,2]
[334195349,1722824960387,-292.31250657,9.606e-05,2]
[334195350,1722824960476,-9280.56952055,9.606e-05,2]
[334195351,1722824960520,-400.0,9.615e-05,2]
[334195352,1722824960560,-439.59274195,9.682e-05,2]
[334195353,1722824960603,-425.32501969,9.683e-05,2]
[334195354,1722824963436,100000.0,0.00025,60]
[334195355,1722824983482,-1719.85,9.566e-05,2]
[334195356,1722824983530,-2990.6993,9.6e-05,2]
[334195357,1722824983571,-74.66498031,9.683e-05,2]
[334195358,1722824983619,-3807.6497,9.683e-05,2]
[334195360,1722824983663,-3673.4158,9.7e-05,2]
[334195361,1722824983703,-394.15120845,9.7e-05,2]
[334195362,1722824983753,-4751.61649478,9.7e-05,2]
[334195363,1722824983835,-6693.84109677,9.7e-05,2]
[334195364,1722824983877,-5966.58989199,9.7e-05,2]
[334195365,1722824983929,-12660.43098876,9.7e-05,2]
[334195366,1722824983988,-12660.43098876,9.7e-05,2]
[334195367,1722824984038,-12660.43098876,9.7e-05,2]
[334195369,1722825017656,1860.9744,9.515e-05,2]
[334195370,1722825025112,1106.68,8.219e-05,2]
[334195427,1722825032226,-298.62086198,9.6e-05,2]
[334195429,1722825032238,-911.46,9.6e-05,2]
[334195431,1722825032250,-415.98592689,9.6e-05,2]
[334195432,1722825032262,-1760.61256337,9.6e-05,2]
[334195434,1722825032275,-882.33461522,9.6e-05,2]
[334195436,1722825032287,-756.03810701,9.6e-05,2]
[334195438,1722825032298,-1182.71091713,9.6e-05,2]
[334195440,1722825032310,-5201.9208084,9.6e-05,2]
[334195442,1722825032319,-300.0,9.699e-05,2]
[334195443,1722825032329,-300.0,9.699e-05,2]
[334195445,1722825032339,-150.0,9.699e-05,2]
[334195446,1722825032348,-89660.25184173,9.7e-05,2]
[334195447,1722825032358,-1730.2762,9.7e-05,2]
[334195448,1722825032377,-1579.83,9.7e-05,2]
[334195449,1722825032387,-499.99,9.7e-05,2]
[334195450,1722825032397,-1896.49,9.7e-05,2]
[334195451,1722825032407,-150.99,9.7e-05,2]
[334195452,1722825032417,-33888.83,9.7e-05,2]
[334195453,1722825032427,-1830.26,9.7e-05,2]
[334195455,1722825032437,-299.99,9.7e-05,2]
[334195456,1722825032446,-225.5,9.7e-05,2]
[334195458,1722825032456,-8001.6801,9.8e-05,2]
[334195460,1722825032465,-500.0,9.8e-05,2]
[334195462,1722825032476,-469.2401,9.8e-05,2]
[334195464,1722825032486,-14145.5261,9.8e-05,2]
[334195465,1722825032496,-39122.4185,9.8e-05,2]
[334195467,1722825032505,-100000.0,9.8e-05,2]
[334195469,1722825032516,-245000.0,9.9e-05,2]
[334195471,1722825032526,-4581.85747888,9.972e-05,2]
[334195473,1722825032536,-287.57952797,9.972e-05,2]
[334195475,1722825032546,-2912.38452072,0.0001,2]
[334195477,1722825032556,-207.83904269,0.0001,2]
[334195479,1722825032566,-1576.4052624,0.0001,2]
[334195481,1722825032576,-164.65548515,0.0001,2]
[334195483,1722825032585,-226.42,0.0001,2]
[334195485,1722825032595,-226.42,0.0001,2]
[334195487,1722825032604,-226.42,0.0001,2]
[334195489,1722825032621,-226.42,0.0001,2]
[334195490,1722825032631,-226.42,0.0001,2]